[Event "Titled Tuesday Blitz March 15 Early 2022"]
[White "Lou, Yiping"]
[Black "Peatman, Carter"]
[WhiteFideId "8603928"]
[BlackFideId "2096480"]
[WhiteElo "2412"]
[BlackElo "2408"]
[Result "0-1"]
[Round "01"]
[TimeControl "180+1"]
[Date "2022.03.15"]
[WhiteClock "0:00:35"]
[BlackClock "0:00:20"]

1. Nf3 {[%clk 0:02:58]}  d5 {[%clk 0:02:59]} 2. b3 {[%clk 0:02:57]}  Nf6 {[%clk 0:02:59]} 3. Bb2 {[%clk 0:02:56]}  Bf5 {[%clk 0:02:59]} 4. g3 {[%clk 0:02:53]}  e6 {[%clk 0:02:53]} 5. Bg2 {[%clk 0:02:50]}  Be7 {[%clk 0:02:51]} 6. O-O {[%clk 0:02:49]}  h6 {[%clk 0:02:51]} 7. d3 {[%clk 0:02:48]}  O-O {[%clk 0:02:49]} 8. Nbd2 {[%clk 0:02:48]}  Bh7 {[%clk 0:02:49]} 9. c4 {[%clk 0:02:46]}  c6 {[%clk 0:02:47]} 10. Re1 {[%clk 0:02:44]}  Nbd7 {[%clk 0:02:46]} 11. a3 {[%clk 0:02:42]}  a5 {[%clk 0:02:45]} 12. Rc1 {[%clk 0:02:40]}  Qb6 {[%clk 0:02:37]} 13. cxd5 {[%clk 0:02:37]}  exd5 {[%clk 0:02:34]} 14. e4 {[%clk 0:02:14]}  dxe4 {[%clk 0:02:34]} 15. dxe4 {[%clk 0:02:14]}  Rad8 {[%clk 0:02:04]} 16. e5 {[%clk 0:01:48]}  Nd5 {[%clk 0:02:04]} 17. Nc4 {[%clk 0:01:43]}  Qc7 {[%clk 0:02:04]} 18. e6 {[%clk 0:01:37]}  fxe6 {[%clk 0:02:05]} 19. Nd4 {[%clk 0:01:32]}  Nc5 {[%clk 0:01:53]} 20. Qg4 {[%clk 0:01:25]}  Bf6 {[%clk 0:01:14]} 21. Nxe6 {[%clk 0:01:21]}  Nxe6 {[%clk 0:01:15]} 22. Qxe6+ {[%clk 0:01:21]}  Kh8 {[%clk 0:01:16]} 23. Ne5 {[%clk 0:01:11]}  Rde8 {[%clk 0:00:40]} 24. Nf7+ {[%clk 0:01:08]}  Qxf7 {[%clk 0:00:38]} 25. Qxf7 {[%clk 0:01:00]}  Rxe1+ {[%clk 0:00:38]} 26. Rxe1 {[%clk 0:00:59]}  Rxf7 {[%clk 0:00:39]} 27. Re8+ {[%clk 0:00:59]}  Bg8 {[%clk 0:00:39]} 28. Bxf6 {[%clk 0:00:47]}  Nxf6 {[%clk 0:00:40]} 29. Ra8 {[%clk 0:00:46]}  Rd7 {[%clk 0:00:38]} 30. Bf1 {[%clk 0:00:43]}  Kh7 {[%clk 0:00:30]} 31. Rxa5 {[%clk 0:00:42]}  Bxb3 {[%clk 0:00:30]} 32. Ra7 {[%clk 0:00:39]}  Bd5 {[%clk 0:00:24]} 33. Bd3+ {[%clk 0:00:39]}  Be4 {[%clk 0:00:24]} 34. Be2 {[%clk 0:00:39]}  Rd2 {[%clk 0:00:21]} 35. Kf1 {[%clk 0:00:38]}  Rb2 {[%clk 0:00:20]} 36. a4 {[%clk 0:00:35]}  Rb1+ {[%clk 0:00:20]} 0-1


[Site "https://www.chess.com"]

[Event "Titled Tuesday Blitz March 15 Early 2022"]
[White "Maksimovic, Bojan"]
[Black "Tsatsalashvili, Keti"]
[WhiteFideId "14408120"]
[BlackFideId "13603434"]
[WhiteElo "2448"]
[BlackElo "2246"]
[Result "0-1"]
[Round "01"]
[TimeControl "180+1"]
[Date "2022.03.15"]
[WhiteClock "0:00:46"]
[BlackClock "0:00:36"]

1. b3 {[%clk 0:02:57]}  Nf6 {[%clk 0:02:56]} 2. Bb2 {[%clk 0:02:58]}  g6 {[%clk 0:02:54]} 3. c4 {[%clk 0:02:58]}  Bg7 {[%clk 0:02:52]} 4. g3 {[%clk 0:02:58]}  O-O {[%clk 0:02:52]} 5. Bg2 {[%clk 0:02:57]}  c6 {[%clk 0:02:49]} 6. Nf3 {[%clk 0:02:57]}  d5 {[%clk 0:02:49]} 7. O-O {[%clk 0:02:57]}  Bf5 {[%clk 0:02:46]} 8. d3 {[%clk 0:02:57]}  Nbd7 {[%clk 0:02:45]} 9. Nbd2 {[%clk 0:02:57]}  Re8 {[%clk 0:02:43]} 10. Ne5 {[%clk 0:02:57]}  Nxe5 {[%clk 0:02:42]} 11. Bxe5 {[%clk 0:02:58]}  d4 {[%clk 0:02:23]} 12. b4 {[%clk 0:02:51]}  Rc8 {[%clk 0:02:20]} 13. a4 {[%clk 0:02:17]}  a5 {[%clk 0:02:06]} 14. b5 {[%clk 0:02:10]}  Nh5 {[%clk 0:01:59]} 15. Bxg7 {[%clk 0:02:07]}  Nxg7 {[%clk 0:02:00]} 16. bxc6 {[%clk 0:02:01]}  bxc6 {[%clk 0:02:00]} 17. Rb1 {[%clk 0:02:01]}  Qc7 {[%clk 0:01:48]} 18. Nb3 {[%clk 0:02:01]}  e5 {[%clk 0:01:47]} 19. Qd2 {[%clk 0:02:01]}  Ra8 {[%clk 0:01:39]} 20. Nc5 {[%clk 0:02:01]}  Ne6 {[%clk 0:01:33]} 21. Nxe6 {[%clk 0:02:00]}  Bxe6 {[%clk 0:01:29]} 22. Rb3 {[%clk 0:01:57]}  Reb8 {[%clk 0:01:27]} 23. Rfb1 {[%clk 0:01:57]}  Rxb3 {[%clk 0:01:20]} 24. Rxb3 {[%clk 0:01:58]}  Rb8 {[%clk 0:01:19]} 25. Qb2 {[%clk 0:01:58]}  Rxb3 {[%clk 0:01:17]} 26. Qxb3 {[%clk 0:01:59]}  c5 {[%clk 0:01:09]} 27. Bd5 {[%clk 0:01:58]}  Bd7 {[%clk 0:01:07]} 28. Kg2 {[%clk 0:01:47]}  Kg7 {[%clk 0:01:08]} 29. e3 {[%clk 0:01:42]}  h6 {[%clk 0:01:06]} 30. Kf1 {[%clk 0:01:42]}  Bh3+ {[%clk 0:01:05]} 31. Ke2 {[%clk 0:01:41]}  Bg4+ {[%clk 0:01:05]} 32. Kd2 {[%clk 0:01:41]}  Bd7 {[%clk 0:01:06]} 33. Kc2 {[%clk 0:01:31]}  Be8 {[%clk 0:00:56]} 34. Kb2 {[%clk 0:01:31]}  Qc8 {[%clk 0:00:47]} 35. e4 {[%clk 0:01:15]}  Qg4 {[%clk 0:00:43]} 36. Qc2 {[%clk 0:01:10]}  Qh3 {[%clk 0:00:40]} 37. f4 {[%clk 0:01:06]}  exf4 {[%clk 0:00:38]} 38. gxf4 {[%clk 0:01:07]}  Qf1 {[%clk 0:00:37]} 39. f5 {[%clk 0:00:49]}  gxf5 {[%clk 0:00:37]} 40. exf5 {[%clk 0:00:50]}  Qxf5 {[%clk 0:00:36]} 41. Qg2+ {[%clk 0:00:45]}  Qg5 {[%clk 0:00:36]} 42. Qd2 {[%clk 0:00:46]}  Qxd2+ {[%clk 0:00:36]} 0-1


[Site "https://www.chess.com"]

[Event "Titled Tuesday Blitz March 15 Early 2022"]
[White "Maung, Maung Kyaw Zaw Hein"]
[Black "Gurevich, Dmitry"]
[WhiteFideId "13001698"]
[BlackFideId "2000407"]
[WhiteElo "1785"]
[BlackElo "2506"]
[Result "0-1"]
[Round "01"]
[TimeControl "180+1"]
[Date "2022.03.15"]
[WhiteClock "0:00:07"]
[BlackClock "0:00:34"]

1. Nf3 {[%clk 0:03:00]}  Nf6 {[%clk 0:02:56]} 2. c4 {[%clk 0:03:00]}  e6 {[%clk 0:02:53]} 3. Nc3 {[%clk 0:03:00]}  d5 {[%clk 0:02:51]} 4. d4 {[%clk 0:03:00]}  Be7 {[%clk 0:02:49]} 5. Bf4 {[%clk 0:02:58]}  O-O {[%clk 0:02:45]} 6. e3 {[%clk 0:02:57]}  b6 {[%clk 0:02:45]} 7. Bd3 {[%clk 0:02:55]}  dxc4 {[%clk 0:02:42]} 8. Bxc4 {[%clk 0:02:55]}  Bb7 {[%clk 0:02:43]} 9. O-O {[%clk 0:02:55]}  c5 {[%clk 0:02:43]} 10. Qe2 {[%clk 0:02:45]}  cxd4 {[%clk 0:02:22]} 11. Nxd4 {[%clk 0:02:43]}  Nbd7 {[%clk 0:02:22]} 12. Nf3 {[%clk 0:02:14]}  a6 {[%clk 0:02:17]} 13. Rfd1 {[%clk 0:02:13]}  b5 {[%clk 0:02:12]} 14. Bb3 {[%clk 0:02:08]}  Qb6 {[%clk 0:02:11]} 15. a3 {[%clk 0:01:57]}  Nc5 {[%clk 0:02:08]} 16. Bc2 {[%clk 0:01:57]}  Rfd8 {[%clk 0:01:52]} 17. e4 {[%clk 0:01:40]}  b4 {[%clk 0:01:41]} 18. axb4 {[%clk 0:01:38]}  Qxb4 {[%clk 0:01:41]} 19. e5 {[%clk 0:01:36]}  Qxf4 {[%clk 0:01:39]} 20. exf6 {[%clk 0:01:32]}  Bxf6 {[%clk 0:01:34]} 21. Ne1 {[%clk 0:01:14]}  g6 {[%clk 0:01:15]} 22. Nd3 {[%clk 0:00:58]}  Qg5 {[%clk 0:01:12]} 23. Ne1 {[%clk 0:00:54]}  Qe5 {[%clk 0:01:09]} 24. Qc4 {[%clk 0:00:47]}  Rxd1 {[%clk 0:01:02]} 25. Rxd1 {[%clk 0:00:46]}  Rc8 {[%clk 0:00:59]} 26. Qb4 {[%clk 0:00:39]}  Kg7 {[%clk 0:00:54]} 27. Qb6 {[%clk 0:00:33]}  Rd8 {[%clk 0:00:50]} 28. Nd3 {[%clk 0:00:22]}  Nxd3 {[%clk 0:00:48]} 29. Qxb7 {[%clk 0:00:20]}  Nxb2 {[%clk 0:00:37]} 30. Rb1 {[%clk 0:00:07]}  Qxc3 {[%clk 0:00:34]} 0-1


[Site "https://www.chess.com"]

[Event "Titled Tuesday Blitz March 15 Early 2022"]
[White "Mortazavi, Ali"]
[Black "Van Foreest, Jorden"]
[WhiteFideId "401323"]
[BlackFideId "1039784"]
[WhiteElo "2339"]
[BlackElo "2609"]
[Result "0-1"]
[Round "01"]
[TimeControl "180+1"]
[Date "2022.03.15"]
[WhiteClock "0:00:09"]
[BlackClock "0:00:35"]

1. Nf3 {[%clk 0:03:00]}  b6 {[%clk 0:02:54]} 2. g3 {[%clk 0:03:00]}  Bb7 {[%clk 0:02:54]} 3. Bg2 {[%clk 0:03:01]}  Nf6 {[%clk 0:02:51]} 4. O-O {[%clk 0:03:02]}  c5 {[%clk 0:02:51]} 5. d3 {[%clk 0:03:02]}  g6 {[%clk 0:02:47]} 6. e4 {[%clk 0:03:01]}  Bg7 {[%clk 0:02:48]} 7. a4 {[%clk 0:03:01]}  O-O {[%clk 0:02:48]} 8. a5 {[%clk 0:03:01]}  d5 {[%clk 0:02:31]} 9. e5 {[%clk 0:03:00]}  Nfd7 {[%clk 0:02:31]} 10. e6 {[%clk 0:03:00]}  fxe6 {[%clk 0:02:30]} 11. Re1 {[%clk 0:02:51]}  Rf6 {[%clk 0:02:07]} 12. Nc3 {[%clk 0:02:37]}  Nc6 {[%clk 0:02:05]} 13. a6 {[%clk 0:02:29]}  Bc8 {[%clk 0:02:04]} 14. Bg5 {[%clk 0:02:26]}  Rf7 {[%clk 0:02:03]} 15. Rxe6 {[%clk 0:02:09]}  Nde5 {[%clk 0:01:59]} 16. Nxe5 {[%clk 0:02:03]}  Nxe5 {[%clk 0:01:59]} 17. Bxd5 {[%clk 0:01:57]}  Qxd5 {[%clk 0:01:16]} 18. Nxd5 {[%clk 0:01:50]}  Bxe6 {[%clk 0:01:16]} 19. Nc7 {[%clk 0:01:17]}  Nf3+ {[%clk 0:01:15]} 20. Kg2 {[%clk 0:01:09]}  Nxg5 {[%clk 0:01:10]} 21. Nxe6 {[%clk 0:01:06]}  Nxe6 {[%clk 0:01:10]} 22. c3 {[%clk 0:00:59]}  Raf8 {[%clk 0:00:57]} 23. Qb3 {[%clk 0:00:58]}  Rxf2+ {[%clk 0:00:46]} 24. Kg1 {[%clk 0:00:58]}  Re2 {[%clk 0:00:46]} 25. Rf1 {[%clk 0:00:46]}  Bf6 {[%clk 0:00:42]} 26. Qd1 {[%clk 0:00:22]}  Rxb2 {[%clk 0:00:39]} 27. Qg4 {[%clk 0:00:20]}  Nd4 {[%clk 0:00:37]} 28. Re1 {[%clk 0:00:12]}  Nf3+ {[%clk 0:00:36]} 29. Kh1 {[%clk 0:00:09]}  Rxh2# {[%clk 0:00:35]} 0-1


[Site "https://www.chess.com"]

[Event "Titled Tuesday Blitz March 15 Early 2022"]
[White "Myshakov, Fyodor"]
[Black "Flis, Pawel"]
[WhiteFideId "14111284"]
[BlackFideId "1112864"]
[WhiteElo "2310"]
[BlackElo "1735"]
[Result "1-0"]
[Round "01"]
[TimeControl "180+1"]
[Date "2022.03.15"]
[WhiteClock "0:00:28"]
[BlackClock "0:00:02"]

1. c4 {[%clk 0:02:56]}  Nf6 {[%clk 0:02:58]} 2. Nc3 {[%clk 0:02:56]}  g6 {[%clk 0:02:58]} 3. Nf3 {[%clk 0:02:57]}  Bg7 {[%clk 0:02:58]} 4. g3 {[%clk 0:02:58]}  O-O {[%clk 0:02:58]} 5. Bg2 {[%clk 0:02:58]}  d6 {[%clk 0:02:59]} 6. O-O {[%clk 0:02:58]}  Nc6 {[%clk 0:02:57]} 7. d4 {[%clk 0:02:59]}  a6 {[%clk 0:02:56]} 8. Bg5 {[%clk 0:02:59]}  h6 {[%clk 0:02:53]} 9. Bxf6 {[%clk 0:03:00]}  Bxf6 {[%clk 0:02:54]} 10. e3 {[%clk 0:02:59]}  e5 {[%clk 0:02:50]} 11. dxe5 {[%clk 0:02:58]}  Nxe5 {[%clk 0:02:50]} 12. Nxe5 {[%clk 0:02:59]}  Bxe5 {[%clk 0:02:51]} 13. Qd2 {[%clk 0:02:55]}  Rb8 {[%clk 0:02:47]} 14. Rac1 {[%clk 0:02:53]}  Be6 {[%clk 0:02:05]} 15. b3 {[%clk 0:02:51]}  Qd7 {[%clk 0:02:01]} 16. Nd5 {[%clk 0:02:49]}  c6 {[%clk 0:01:24]} 17. f4 {[%clk 0:02:36]}  Bg7 {[%clk 0:01:16]} 18. Nb6 {[%clk 0:02:32]}  Qc7 {[%clk 0:01:13]} 19. Nd5 {[%clk 0:02:21]}  cxd5 {[%clk 0:01:10]} 20. cxd5 {[%clk 0:02:20]}  Qd7 {[%clk 0:01:11]} 21. dxe6 {[%clk 0:02:20]}  Qxe6 {[%clk 0:01:12]} 22. Bd5 {[%clk 0:02:18]}  Qe7 {[%clk 0:01:10]} 23. e4 {[%clk 0:02:14]}  Rbc8 {[%clk 0:01:08]} 24. Qb4 {[%clk 0:02:12]}  b5 {[%clk 0:00:56]} 25. e5 {[%clk 0:02:08]}  Qa7+ {[%clk 0:00:54]} 26. Kh1 {[%clk 0:02:05]}  dxe5 {[%clk 0:00:53]} 27. fxe5 {[%clk 0:02:02]}  Rxc1 {[%clk 0:00:52]} 28. Rxc1 {[%clk 0:02:01]}  Bxe5 {[%clk 0:00:51]} 29. Qe4 {[%clk 0:02:00]}  Bg7 {[%clk 0:00:28]} 30. Qxg6 {[%clk 0:01:54]}  Qe3 {[%clk 0:00:24]} 31. Rf1 {[%clk 0:01:51]}  Qe2 {[%clk 0:00:15]} 32. Qf5 {[%clk 0:01:33]}  Qe5 {[%clk 0:00:10]} 33. Bxf7+ {[%clk 0:01:16]}  Kh8 {[%clk 0:00:07]} 34. Qxe5 {[%clk 0:01:15]}  Bxe5 {[%clk 0:00:06]} 35. Kg2 {[%clk 0:01:15]}  Kg7 {[%clk 0:00:05]} 36. Bd5 {[%clk 0:01:15]}  Rxf1 {[%clk 0:00:05]} 37. Kxf1 {[%clk 0:01:15]}  Kf6 {[%clk 0:00:06]} 38. Ke2 {[%clk 0:01:15]}  a5 {[%clk 0:00:06]} 39. Kd3 {[%clk 0:01:13]}  b4 {[%clk 0:00:05]} 40. Kc4 {[%clk 0:01:07]}  Bc7 {[%clk 0:00:05]} 41. Kc5 {[%clk 0:01:02]}  Ke5 {[%clk 0:00:05]} 42. Bf3 {[%clk 0:01:02]}  Bd8 {[%clk 0:00:04]} 43. Kc6 {[%clk 0:00:49]}  Kd4 {[%clk 0:00:04]} 44. Kd7 {[%clk 0:00:48]}  Bb6 {[%clk 0:00:04]} 45. Kc6 {[%clk 0:00:48]}  Bd8 {[%clk 0:00:03]} 46. Kd6 {[%clk 0:00:43]}  Bb6 {[%clk 0:00:03]} 47. Ke6 {[%clk 0:00:43]}  Kc3 {[%clk 0:00:03]} 48. Kf6 {[%clk 0:00:37]}  Kb2 {[%clk 0:00:03]} 49. Bc6 {[%clk 0:00:36]}  Be3 {[%clk 0:00:03]} 50. h4 {[%clk 0:00:29]}  Kxa2 {[%clk 0:00:02]} 51. Ba4 {[%clk 0:00:29]}  Kb2 {[%clk 0:00:01]} 52. g4 {[%clk 0:00:27]}  Kc3 {[%clk 0:00:02]} 53. g5 {[%clk 0:00:27]}  hxg5 {[%clk 0:00:02]} 54. hxg5 {[%clk 0:00:28]}  Bd4+ {[%clk 0:00:02]} 55. Kf7 {[%clk 0:00:28]} 1-0


[Site "https://www.chess.com"]

[Event "Titled Tuesday Blitz March 15 Early 2022"]
[White "Nagy, Gabor"]
[Black "Ilyasli, Ughur"]
[WhiteFideId "737119"]
[BlackFideId "13416197"]
[WhiteElo "2534"]
[BlackElo "2045"]
[Result "1-0"]
[Round "01"]
[TimeControl "180+1"]
[Date "2022.03.15"]
[WhiteClock "0:01:53"]
[BlackClock "0:00:06"]

1. e4 {[%clk 0:03:00]}  c5 {[%clk 0:03:00]} 2. Nf3 {[%clk 0:02:59]}  Nc6 {[%clk 0:03:00]} 3. Nc3 {[%clk 0:02:59]}  d6 {[%clk 0:02:58]} 4. d4 {[%clk 0:02:57]}  cxd4 {[%clk 0:02:59]} 5. Nxd4 {[%clk 0:02:58]}  Nf6 {[%clk 0:02:59]} 6. Bc4 {[%clk 0:02:55]}  e6 {[%clk 0:02:57]} 7. Be3 {[%clk 0:02:54]}  a6 {[%clk 0:02:56]} 8. Qe2 {[%clk 0:02:54]}  Bd7 {[%clk 0:02:56]} 9. Bb3 {[%clk 0:02:52]}  Be7 {[%clk 0:02:52]} 10. O-O-O {[%clk 0:02:50]}  Na5 {[%clk 0:02:38]} 11. g4 {[%clk 0:02:43]}  Nxb3+ {[%clk 0:02:35]} 12. axb3 {[%clk 0:02:42]}  h5 {[%clk 0:02:27]} 13. h3 {[%clk 0:02:32]}  Qa5 {[%clk 0:02:07]} 14. g5 {[%clk 0:02:26]}  Nh7 {[%clk 0:01:55]} 15. h4 {[%clk 0:02:19]}  Nf8 {[%clk 0:01:51]} 16. Kb1 {[%clk 0:02:17]}  Rc8 {[%clk 0:01:45]} 17. f4 {[%clk 0:02:15]}  e5 {[%clk 0:01:40]} 18. Nf5 {[%clk 0:02:14]}  Ne6 {[%clk 0:00:59]} 19. Nxe7 {[%clk 0:02:12]}  Kxe7 {[%clk 0:00:59]} 20. f5 {[%clk 0:02:11]}  Rxc3 {[%clk 0:00:46]} 21. bxc3 {[%clk 0:02:07]}  Nf4 {[%clk 0:00:24]} 22. Qd2 {[%clk 0:02:04]}  d5 {[%clk 0:00:19]} 23. Bxf4 {[%clk 0:02:03]}  exf4 {[%clk 0:00:19]} 24. Qxf4 {[%clk 0:02:02]}  Rc8 {[%clk 0:00:14]} 25. Rxd5 {[%clk 0:01:59]}  Qc7 {[%clk 0:00:05]} 26. Qxc7 {[%clk 0:01:53]}  Rxc7 {[%clk 0:00:06]} 27. Rhd1 {[%clk 0:01:53]}  Bc6 {[%clk 0:00:06]} 28. Re5+ {[%clk 0:01:53]}  Kf8 {[%clk 0:00:06]} 29. Rd8+ {[%clk 0:01:53]} 1-0


[Site "https://www.chess.com"]

[Event "Titled Tuesday Blitz March 15 Early 2022"]
[White "Nan, M K Khine Hlyan"]
[Black "Shuvalova, Polina"]
[WhiteFideId "13002899"]
[BlackFideId "24171760"]
[WhiteElo "1943"]
[BlackElo "2355"]
[Result "0-1"]
[Round "01"]
[TimeControl "180+1"]
[Date "2022.03.15"]
[WhiteClock "0:02:24"]
[BlackClock "0:02:32"]

1. e4 {[%clk 0:02:59]}  c5 {[%clk 0:02:59]} 2. Nf3 {[%clk 0:02:59]}  d6 {[%clk 0:02:58]} 3. d4 {[%clk 0:02:58]}  cxd4 {[%clk 0:02:59]} 4. Nxd4 {[%clk 0:02:58]}  Nf6 {[%clk 0:03:00]} 5. Nc3 {[%clk 0:02:57]}  Nc6 {[%clk 0:03:00]} 6. Bb5 {[%clk 0:02:52]}  Bd7 {[%clk 0:02:56]} 7. Bxc6 {[%clk 0:02:51]}  bxc6 {[%clk 0:02:54]} 8. O-O {[%clk 0:02:50]}  g6 {[%clk 0:02:52]} 9. Be3 {[%clk 0:02:50]}  Bg7 {[%clk 0:02:51]} 10. f4 {[%clk 0:02:50]}  Ng4 {[%clk 0:02:51]} 11. Qe2 {[%clk 0:02:38]}  Nxe3 {[%clk 0:02:41]} 12. Qxe3 {[%clk 0:02:38]}  Qb6 {[%clk 0:02:41]} 13. Nce2 {[%clk 0:02:34]}  O-O {[%clk 0:02:37]} 14. Nf5 {[%clk 0:02:29]}  gxf5 {[%clk 0:02:33]} 15. Qxb6 {[%clk 0:02:24]}  axb6 {[%clk 0:02:34]} 16. exf5 {[%clk 0:02:24]}  Bxf5 {[%clk 0:02:32]} 0-1


[Site "https://www.chess.com"]

[Event "Titled Tuesday Blitz March 15 Early 2022"]
[White "Navalgund, Niranjan"]
[Black "Bryakin, Mikhail"]
[WhiteFideId "5030854"]
[BlackFideId "4165314"]
[WhiteElo "2290"]
[BlackElo "2417"]
[Result "1/2-1/2"]
[Round "01"]
[TimeControl "180+1"]
[Date "2022.03.15"]
[WhiteClock "0:00:24"]
[BlackClock "0:00:10"]

1. e4 {[%clk 0:02:35]}  c5 {[%clk 0:02:56]} 2. d4 {[%clk 0:02:35]}  cxd4 {[%clk 0:02:54]} 3. c3 {[%clk 0:02:36]}  Nf6 {[%clk 0:02:49]} 4. e5 {[%clk 0:02:36]}  Nd5 {[%clk 0:02:49]} 5. Nf3 {[%clk 0:02:17]}  Nc6 {[%clk 0:02:48]} 6. Bc4 {[%clk 0:02:15]}  Nb6 {[%clk 0:02:48]} 7. Bb3 {[%clk 0:02:13]}  d5 {[%clk 0:02:49]} 8. exd6 {[%clk 0:02:02]}  Qxd6 {[%clk 0:02:48]} 9. O-O {[%clk 0:02:03]}  g6 {[%clk 0:02:38]} 10. Ng5 {[%clk 0:02:01]}  e6 {[%clk 0:02:30]} 11. Ne4 {[%clk 0:02:01]}  Qd8 {[%clk 0:02:27]} 12. Bg5 {[%clk 0:01:58]}  Be7 {[%clk 0:02:27]} 13. Bh6 {[%clk 0:01:57]}  f5 {[%clk 0:02:20]} 14. Ng3 {[%clk 0:01:41]}  Bf6 {[%clk 0:02:17]} 15. Re1 {[%clk 0:01:39]}  Qd6 {[%clk 0:02:16]} 16. cxd4 {[%clk 0:01:33]}  Nxd4 {[%clk 0:02:11]} 17. Nc3 {[%clk 0:01:24]}  Bd7 {[%clk 0:02:05]} 18. Rc1 {[%clk 0:01:15]}  Kf7 {[%clk 0:01:26]} 19. Nce4 {[%clk 0:01:04]}  fxe4 {[%clk 0:01:26]} 20. Nxe4 {[%clk 0:01:02]}  Qe7 {[%clk 0:01:27]} 21. Rc7 {[%clk 0:01:00]}  Rhd8 {[%clk 0:01:19]} 22. Rxb7 {[%clk 0:01:00]}  Nxb3 {[%clk 0:01:05]} 23. Qxb3 {[%clk 0:00:54]}  Nd5 {[%clk 0:01:05]} 24. Qf3 {[%clk 0:00:50]}  Kg8 {[%clk 0:00:55]} 25. h4 {[%clk 0:00:42]}  Bxh4 {[%clk 0:00:36]} 26. Qg4 {[%clk 0:00:41]}  Bf6 {[%clk 0:00:31]} 27. Ng5 {[%clk 0:00:41]}  Re8 {[%clk 0:00:19]} 28. Ne4 {[%clk 0:00:37]}  Bg7 {[%clk 0:00:18]} 29. Bg5 {[%clk 0:00:36]}  Nf6 {[%clk 0:00:09]} 30. Bxf6 {[%clk 0:00:36]}  Bxf6 {[%clk 0:00:09]} 31. Rxd7 {[%clk 0:00:36]}  Qf8 {[%clk 0:00:09]} 32. Nd6 {[%clk 0:00:33]}  Re7 {[%clk 0:00:08]} 33. Rxe7 {[%clk 0:00:31]}  Qxe7 {[%clk 0:00:09]} 34. Rxe6 {[%clk 0:00:30]}  Qf8 {[%clk 0:00:07]} 35. Qc4 {[%clk 0:00:28]}  Kh8 {[%clk 0:00:05]} 36. Ne4 {[%clk 0:00:26]}  Bg7 {[%clk 0:00:06]} 37. Ng5 {[%clk 0:00:27]}  h6 {[%clk 0:00:05]} 38. Nf3 {[%clk 0:00:26]}  Rc8 {[%clk 0:00:05]} 39. Qe4 {[%clk 0:00:24]}  Qf5 {[%clk 0:00:02]} 40. Qxf5 {[%clk 0:00:21]}  gxf5 {[%clk 0:00:03]} 41. Nh4 {[%clk 0:00:22]}  Rc1+ {[%clk 0:00:03]} 42. Kh2 {[%clk 0:00:22]}  Bxb2 {[%clk 0:00:04]} 43. Nxf5 {[%clk 0:00:22]}  h5 {[%clk 0:00:04]} 44. Rh6+ {[%clk 0:00:21]}  Kg8 {[%clk 0:00:05]} 45. Rxh5 {[%clk 0:00:21]}  Ra1 {[%clk 0:00:05]} 46. Ne3 {[%clk 0:00:18]}  Rxa2 {[%clk 0:00:05]} 47. g4 {[%clk 0:00:19]}  Bd4 {[%clk 0:00:05]} 48. Nd1 {[%clk 0:00:17]}  a5 {[%clk 0:00:03]} 49. Rf5 {[%clk 0:00:16]}  a4 {[%clk 0:00:03]} 50. Kg3 {[%clk 0:00:16]}  a3 {[%clk 0:00:03]} 51. Ra5 {[%clk 0:00:17]}  Ra1 {[%clk 0:00:03]} 52. Ne3 {[%clk 0:00:17]}  Bc3 {[%clk 0:00:04]} 53. Ra8+ {[%clk 0:00:14]}  Kf7 {[%clk 0:00:04]} 54. Nc2 {[%clk 0:00:15]}  Rc1 {[%clk 0:00:04]} 55. Nxa3 {[%clk 0:00:15]}  Ra1 {[%clk 0:00:04]} 56. Ra7+ {[%clk 0:00:15]}  Kg6 {[%clk 0:00:04]} 57. Nb5 {[%clk 0:00:16]}  Rxa7 {[%clk 0:00:02]} 58. Nxa7 {[%clk 0:00:17]}  Kf6 {[%clk 0:00:02]} 59. Nb5 {[%clk 0:00:17]}  Bb2 {[%clk 0:00:03]} 60. f3 {[%clk 0:00:18]}  Ke5 {[%clk 0:00:03]} 61. f4+ {[%clk 0:00:19]}  Kd5 {[%clk 0:00:04]} 62. Nc7+ {[%clk 0:00:19]}  Kd6 {[%clk 0:00:04]} 63. Nb5+ {[%clk 0:00:18]}  Kc5 {[%clk 0:00:04]} 64. Nc7 {[%clk 0:00:19]}  Kd6 {[%clk 0:00:04]} 65. Ne8+ {[%clk 0:00:19]}  Kd7 {[%clk 0:00:04]} 66. Nc7 {[%clk 0:00:18]}  Kxc7 {[%clk 0:00:04]} 67. g5 {[%clk 0:00:18]}  Kd6 {[%clk 0:00:05]} 68. Kg4 {[%clk 0:00:19]}  Ke6 {[%clk 0:00:05]} 69. Kh5 {[%clk 0:00:19]}  Kf7 {[%clk 0:00:06]} 70. Kh6 {[%clk 0:00:19]}  Kg8 {[%clk 0:00:06]} 71. f5 {[%clk 0:00:19]}  Bc1 {[%clk 0:00:07]} 72. Kg6 {[%clk 0:00:20]}  Bxg5 {[%clk 0:00:07]} 73. Kxg5 {[%clk 0:00:20]}  Kf7 {[%clk 0:00:07]} 74. Kh5 {[%clk 0:00:21]}  Kf6 {[%clk 0:00:08]} 75. Kg4 {[%clk 0:00:22]}  Kf7 {[%clk 0:00:08]} 76. Kg5 {[%clk 0:00:23]}  Kg7 {[%clk 0:00:08]} 77. f6+ {[%clk 0:00:24]}  Kf7 {[%clk 0:00:09]} 78. Kf4 {[%clk 0:00:24]}  Kxf6 {[%clk 0:00:10]} 1/2-1/2


[Site "https://www.chess.com"]

[Event "Titled Tuesday Blitz March 15 Early 2022"]
[White "Niemann, Hans Moke"]
[Black "Migot, Tangi"]
[WhiteFideId "2093596"]
[BlackFideId "662445"]
[WhiteElo "2632"]
[BlackElo "2513"]
[Result "1-0"]
[Round "01"]
[TimeControl "180+1"]
[Date "2022.03.15"]
[WhiteClock "0:02:19"]
[BlackClock "0:01:33"]

1. d4 {[%clk 0:03:00]}  d5 {[%clk 0:02:59]} 2. Nc3 {[%clk 0:03:01]}  Bf5 {[%clk 0:02:59]} 3. f3 {[%clk 0:03:00]}  e6 {[%clk 0:02:59]} 4. e4 {[%clk 0:03:00]}  Bg6 {[%clk 0:02:56]} 5. h4 {[%clk 0:03:01]}  h5 {[%clk 0:02:54]} 6. Nge2 {[%clk 0:03:01]}  Nf6 {[%clk 0:02:52]} 7. Nf4 {[%clk 0:03:01]}  Bh7 {[%clk 0:02:50]} 8. e5 {[%clk 0:03:01]}  Nfd7 {[%clk 0:02:49]} 9. Bd3 {[%clk 0:03:00]}  Bxd3 {[%clk 0:02:48]} 10. Qxd3 {[%clk 0:03:01]}  Be7 {[%clk 0:02:45]} 11. Nce2 {[%clk 0:02:58]}  c5 {[%clk 0:02:42]} 12. Nxe6 {[%clk 0:02:58]}  Qb6 {[%clk 0:02:12]} 13. Nxg7+ {[%clk 0:02:57]}  Kf8 {[%clk 0:02:13]} 14. Nf5 {[%clk 0:02:57]}  Nc6 {[%clk 0:02:12]} 15. Bh6+ {[%clk 0:02:53]}  Ke8 {[%clk 0:02:11]} 16. Be3 {[%clk 0:02:39]}  Qxb2 {[%clk 0:02:07]} 17. O-O {[%clk 0:02:39]}  c4 {[%clk 0:02:01]} 18. Qd1 {[%clk 0:02:35]}  Qa3 {[%clk 0:01:53]} 19. Nf4 {[%clk 0:02:35]}  b5 {[%clk 0:01:46]} 20. Nxd5 {[%clk 0:02:34]}  Bd8 {[%clk 0:01:47]} 21. Qd2 {[%clk 0:02:23]}  Ba5 {[%clk 0:01:42]} 22. Qf2 {[%clk 0:02:24]}  Kd8 {[%clk 0:01:39]} 23. Nd6 {[%clk 0:02:19]}  Rh7 {[%clk 0:01:33]} 24. Bg5+ {[%clk 0:02:19]} 1-0


[Site "https://www.chess.com"]